bitfinex/quotes_SOLUSD_20250417
["timestamp","ask_amount","ask_price","bid_price","bid_amount"]
[1744899316223,0.063,131.73,131.71,16.56]
[1744899317926,0.063,131.73,131.71,35.96612989]
[1744899318246,0.063,131.73,131.72,19.40612989]
[1744899318427,0.063,131.73,131.72,19.69045303]
[1744899318633,0.063,131.73,131.71,16.56]
[1744899319139,0.063,131.73,131.72,19.40612989]
[1744899319532,0.063,131.73,131.72,19.69045303]
[1744899321012,0.063,131.73,131.72,65.3380933]
[1744899321218,0.063,131.79,131.77,0.28432314]
[1744899321439,0.063,131.79,131.77,16.84432314]
[1744899321630,0.063,131.79,131.77,36.25045303]
[1744899322541,7.65091879,131.79,131.77,16.56]
[1744899322741,0.063,131.79,131.78,19.69045303]
[1744899322918,0.063,131.79,131.78,27.27885794]
[1744899323119,0.063,131.79,131.78,33.40561447]
[1744899323320,0.063,131.79,131.78,31.0943604]
[1744899323538,0.063,131.79,131.78,23.50595549]
[1744899323739,0.063,131.79,131.78,31.0943604]
[1744899324145,0.063,131.79,131.78,27.27885794]
[1744899324542,0.063,131.79,131.78,45.9285068]
[1744899325144,0.063,131.79,131.78,57.432126]
[1744899325525,0.063,131.79,131.78,38.78247714]
[1744899325932,0.063,131.79,131.78,64.78247714]
[1744899326529,0.063,131.79,131.78,83.432126]
[1744899326830,0.063,131.8,131.78,83.432126]
[1744899326831,0.063,131.8,131.79,18.933972]
[1744899327139,0.063,131.8,131.79,38.78190135]
[1744899327935,0.063,131.8,131.79,57.19407223]
[1744899328336,0.063,131.8,131.79,57.05191066]
[1744899329451,0.063,131.8,131.79,57.19407223]
[1744899330027,0.063,131.8,131.79,64.78190135]
[1744899330441,0.063,131.8,131.79,38.78190135]
[1744899330842,0.063,131.84,131.82,26.0]
[1744899331151,0.063,131.84,131.83,47.73407223]
[1744899337665,0.063,131.84,131.83,55.31959904]
[1744899338349,0.063,131.84,131.83,47.73407223]
[1744899338560,0.063,131.84,131.83,55.31959904]
[1744899339050,0.063,131.84,131.83,47.56974909]
[1744899339638,0.063,131.84,131.83,47.85407223]
[1744899341869,0.063,131.84,131.83,47.71191066]
[1744899342172,0.063,131.84,131.83,47.85407223]
[1744899345161,0.063,131.84,131.83,36.25977524]
[1744899345334,0.063,131.84,131.83,16.94432314]
[1744899345535,0.063,131.84,131.83,36.25977524]
[1744899345738,0.063,131.84,131.83,35.9754521]
[1744899345967,0.063,131.84,131.83,16.66]
[1744899346166,20.9852521,131.84,131.83,16.66]
[1744899346362,20.9852521,131.84,131.8,19.45761367]
[1744899346867,1.6698,131.84,131.81,19.3154521]
[1744899347440,7.58552681,131.83,131.81,19.3154521]
[1744899347640,7.58552681,131.83,131.8,19.45761367]
[1744899348242,25.3852521,131.82,131.79,16.66]
[1744899348438,19.3154521,131.8,131.76,19.3154521]
[1744899348634,6.0698,131.82,131.75,16.66]
[1744899348635,19.3154521,131.79,131.75,16.66]
[1744899348858,20.9203521,131.78,131.75,16.66]
[1744899349364,7.58898079,131.77,131.75,16.66]
[1744899350967,7.58898079,131.77,131.73,0.03]
[1744899350968,45.87688488,131.77,131.73,0.03]
[1744899351365,26.56143278,131.77,131.73,19.48761367]
[1744899351571,45.87688488,131.77,131.73,0.03]
[1744899352964,19.3154521,131.76,131.73,0.03]
[1744899353157,25.4574521,131.76,131.73,0.03]
[1744899353669,7.59013282,131.75,131.73,0.03]
[1744899354370,19.3154521,131.74,131.73,0.03]
[1744899354742,26.90558492,131.75,131.73,0.03]
[1744899355266,13.73176393,131.76,131.74,19.3154521]
[1744899356777,7.58976393,131.76,131.74,19.3154521]
[1744899357271,7.58919023,131.77,131.74,19.3154521]
[1744899357858,7.58919023,131.77,131.75,19.3154521]
[1744899358674,9.19355388,131.78,131.75,19.3154521]
[1744899359752,14.12795726,131.79,131.76,19.3154521]
[1744899359953,7.7882,131.82,131.78,19.3154521]
[1744899360153,15.37444486,131.82,131.8,19.3154521]
[1744899360478,34.33970051,131.82,131.78,19.3154521]
[1744899360655,34.33970051,131.82,131.76,16.94432314]
[1744899360656,53.65515261,131.82,131.77,19.3154521]
[1744899360851,19.3154521,131.81,131.77,19.3154521]
[1744899361056,19.3154521,131.81,131.76,36.25977524]
[1744899361362,37.96510096,131.81,131.76,35.9754521]
[1744899361972,34.33970051,131.82,131.77,19.59977524]
[1744899361973,34.68989696,131.82,131.77,19.59977524]
[1744899362185,15.37444486,131.82,131.78,19.3154521]
[1744899362359,34.68989696,131.82,131.77,19.59977524]
[1744899362550,37.96510096,131.81,131.76,16.66]
[1744899362755,19.3154521,131.8,131.76,16.66]
[1744899362955,37.96510096,131.81,131.76,35.9754521]
[1744899363765,19.3154521,131.8,131.76,16.66]
[1744899364073,7.58782912,131.79,131.76,16.66]
[1744899364273,26.90328122,131.79,131.76,16.66]
[1744899364450,19.3154521,131.78,131.76,16.66]
[1744899364659,26.55740192,131.79,131.75,19.3154521]
[1744899365158,7.58782912,131.79,131.75,19.3154521]
[1744899366272,7.58751271,131.8,131.76,19.3154521]
[1744899366479,7.58751271,131.8,131.77,19.3154521]
[1744899367582,7.58667779,131.81,131.77,19.3154521]
[1744899368070,26.90212989,131.81,131.76,19.3154521]
[1744899368381,19.3154521,131.8,131.75,19.45761367]
[1744899368678,19.3154521,131.79,131.75,0.14216157]
[1744899369474,19.3154521,131.79,131.74,19.45761367]
[1744899369784,7.58840491,131.78,131.74,19.45761367]
[1744899371082,7.58840491,131.78,131.75,19.3154521]
[1744899371282,7.58840491,131.78,131.74,0.14216157]
[1744899371283,7.58840491,131.78,131.74,7.87499303]
[1744899371470,7.58840491,131.78,131.75,19.3154521]
[1744899371671,7.58782912,131.79,131.75,19.3154521]
[1744899372284,7.58782912,131.79,131.74,0.28432314]
[1744899372585,19.3154521,131.78,131.73,35.8854521]
[1744899372777,19.3154521,131.74,131.73,0.03]
[1744899373278,57.28055306,131.74,131.73,0.03]
[1744899373488,19.3154521,131.7,131.67,0.03]
[1744899373673,7.593591,131.69,131.67,0.03]
[1744899373862,7.59330544,131.7,131.67,0.03]
[1744899374261,7.59330544,131.7,131.67,19.3454521]
[1744899374465,7.59259546,131.71,131.69,19.3154521]
[1744899375280,7.59259546,131.71,131.67,0.03]
[1744899375584,45.88914238,131.71,131.67,0.03]
[1744899376289,19.3154521,131.7,131.67,0.03]
[1744899376586,19.3154521,131.68,131.67,0.03]
[1744899376767,18.64964886,131.69,131.67,0.03]
[1744899376967,51.6590521,131.7,131.67,0.03]
[1744899377882,7.593591,131.69,131.67,0.03]
[1744899378279,45.55869196,131.69,131.67,0.03]
[1744899378791,18.64964886,131.67,131.66,0.03]
[1744899378990,37.96510096,131.67,131.66,0.03]
[1744899379981,26.24439329,131.67,131.66,0.03]
[1744899381379,45.55984539,131.67,131.66,0.03]
[1744899383378,71.55984539,131.67,131.66,0.03]
[1744899383978,90.54670648,131.67,131.62,0.03]
[1744899384186,19.3154521,131.66,131.62,0.03]
[1744899384387,45.56099917,131.65,131.62,0.03]
[1744899384587,19.3154521,131.64,131.62,0.03]
[1744899385494,64.5507447,131.65,131.62,0.03]
[1744899385686,45.2352926,131.65,131.62,0.03]
[1744899385996,64.5507447,131.65,131.62,0.03]
[1744899386198,45.2352926,131.65,131.62,0.03]
[1744899386372,64.5507447,131.65,131.62,0.03]
[1744899386575,19.3154521,131.64,131.62,0.03]
[1744899387290,37.96510096,131.63,131.61,0.03]
[1744899387499,37.96510096,131.62,131.61,0.03]
[1744899387679,39.58220096,131.62,131.61,0.03]
[1744899387885,65.58220096,131.62,131.61,1e-08]
[1744899388493,73.17983049,131.62,131.61,1e-08]
[1744899388993,47.17983049,131.62,131.61,1e-08]
[1744899390175,53.86437839,131.62,131.61,1e-08]
[1744899390491,73.17983049,131.62,131.61,1e-08]
[1744899390992,47.17983049,131.62,131.61,1e-08]
[1744899392097,44.64964886,131.59,131.58,0.03]
[1744899392303,63.96510096,131.59,131.58,0.03]
[1744899392496,71.56446261,131.59,131.58,0.03]
[1744899392797,18.64964886,131.57,131.56,0.03]
[1744899393102,6.4657,131.58,131.56,0.03]
[1744899393476,52.59776578,131.59,131.56,0.03]
[1744899394074,71.91321788,131.59,131.56,0.03]
[1744899394478,52.59776578,131.59,131.56,0.03]
[1744899395400,52.59776578,131.59,131.56,19.3454521]
[1744899396190,37.96510096,131.58,131.56,0.03]
[1744899396494,18.64964886,131.58,131.56,0.03]
[1744899396704,7.60051683,131.57,131.56,0.03]
[1744899398500,45.56561779,131.57,131.56,0.03]
[1744899399705,7.60051683,131.57,131.56,0.03]
[1744899399881,45.56561779,131.57,131.56,0.03]
[1744899402202,26.25016569,131.57,131.56,0.03]
[1744899402995,7.60051683,131.57,131.56,0.03]
[1744899403385,26.91596893,131.57,131.56,0.03]
[1744899403696,45.56561779,131.57,131.56,0.03]
[1744899404509,18.64964886,131.56,131.53,0.03]
[1744899404814,7.60167236,131.55,131.53,0.03]
[1744899405389,37.96510096,131.54,131.53,0.03]
[1744899405732,7.60167236,131.55,131.53,0.03]
[1744899406078,7.5999392,131.58,131.53,0.03]
[1744899406310,7.5999392,131.58,131.54,19.3154521]
[1744899406820,26.5997872,131.58,131.54,19.3154521]
[1744899407197,26.5997872,131.58,131.53,0.03]
[1744899407198,26.5997872,131.58,131.55,19.3154521]
[1744899407382,7.5999392,131.58,131.56,19.3154521]
[1744899407581,7.5999392,131.58,131.54,19.3154521]
[1744899408004,26.5997872,131.58,131.54,19.3154521]
[1744899408222,44.64964886,131.56,131.5,0.03]
[1744899408409,19.3154521,131.53,131.5,0.03]
[1744899408614,19.3154521,131.54,131.5,0.03]
[1744899408993,7.60282825,131.53,131.5,0.03]
[1744899409520,26.91828035,131.53,131.5,0.03]
[1744899409687,45.92535098,131.53,131.5,0.03]
[1744899410308,26.60989888,131.53,131.5,19.3454521]
[1744899410510,26.60989888,131.53,131.51,19.3154521]
[1744899411009,19.00707063,131.53,131.51,19.3154521]
[1744899411203,38.32252273,131.53,131.5,0.03]
[1744899411506,37.96510096,131.52,131.5,0.03]
[1744899411704,18.64964886,131.52,131.5,0.03]
[1744899412486,37.96510096,131.52,131.5,0.03]
[1744899413290,26.25363334,131.51,131.5,0.03]
[1744899414419,18.64964886,131.5,131.49,0.03]
[1744899414620,37.96510096,131.5,131.49,0.03]
[1744899414995,37.96510096,131.5,131.48,0.03]
[1744899415195,19.00996121,131.51,131.48,0.03]
[1744899415803,38.32541331,131.51,131.48,0.03]
[1744899416815,19.00996121,131.51,131.48,0.03]
[1744899417114,19.00996121,131.51,131.48,19.3454521]
[1744899417292,26.61394569,131.51,131.48,19.3454521]
[1744899418215,7.60398448,131.51,131.49,19.3154521]
[1744899418403,7.60398448,131.51,131.5,19.3154521]
[1744899418593,7.60398448,131.51,131.49,19.3154521]
[1744899418914,26.61394569,131.51,131.48,0.03]
[1744899419208,26.61394569,131.51,131.48,19.3454521]
[1744899419416,7.60398448,131.51,131.48,19.3454521]
[1744899420210,19.3154521,131.5,131.48,0.03]
[1744899420411,45.26359455,131.51,131.48,0.03]
[1744899420599,26.61394569,131.51,131.48,0.03]
[1744899421513,45.92939779,131.51,131.48,0.03]
[1744899421712,19.3154521,131.5,131.48,0.03]
[1744899422105,19.3154521,131.49,131.48,0.03]
[1744899423492,26.92059317,131.49,131.48,0.03]
[1744899423918,45.57024203,131.49,131.47,0.03]
[1744899424117,19.3154521,131.48,131.47,0.03]
[1744899424324,19.3154521,131.46,131.44,0.03]
[1744899425727,7.6074553,131.45,131.44,0.03]
[1744899425924,45.57255626,131.45,131.44,0.03]
[1744899426329,26.9229074,131.45,131.44,0.03]
[1744899426916,64.59119452,131.45,131.42,1e-08]
[1744899427116,19.3154521,131.44,131.42,1e-08]
[1744899427320,45.94154566,131.45,131.42,1e-08]
[1744899427524,19.3154521,131.44,131.42,1e-08]
[1744899427906,7.60861294,131.43,131.42,1e-08]
[1744899429834,26.62236806,131.47,131.42,19.31545211]
[1744899430047,18.64964886,131.46,131.42,1e-08]
[1744899430410,37.96510096,131.46,131.42,1e-08]
[1744899430609,45.93782016,131.47,131.43,19.3154521]
[1744899430817,45.93782016,131.47,131.44,19.3154521]
[1744899430818,26.62236806,131.47,131.44,19.3154521]
[1744899431420,26.62236806,131.47,131.43,19.3154521]
[1744899431940,19.01607005,131.47,131.44,19.3154521]
[1744899432751,7.6057195,131.48,131.46,19.3154521]
[1744899433026,7.6057195,131.48,131.47,19.3154521]
[1744899433212,7.60456273,131.5,131.47,19.3154521]
[1744899434014,19.01140684,131.5,131.47,19.3154521]
[1744899436024,26.61596957,131.5,131.47,19.3154521]
[1744899437038,26.61596957,131.5,131.46,19.3154521]
[1744899437436,19.3154521,131.49,131.44,35.8954521]
[1744899437647,26.61596957,131.5,131.46,19.3154521]
[1744899438838,1.5638,131.55,131.49,19.3154521]
[1744899439013,7.60109455,131.56,131.52,19.3154521]
[1744899439213,37.96510096,131.55,131.47,0.28432314]
[1744899439435,19.3154521,131.52,131.47,19.3154521]
[1744899439619,19.3154521,131.51,131.47,19.3154521]
[1744899440227,19.3154521,131.52,131.47,19.3154521]
[1744899440624,26.61394569,131.51,131.47,19.3154521]
[1744899441339,45.92939779,131.51,131.46,19.3154521]
[1744899441934,18.64964886,131.55,131.48,19.3154521]
[1744899442151,19.3154521,131.52,131.48,19.3154521]
[1744899442319,19.3154521,131.52,131.45,0.28432314]
[1744899442525,19.3154521,131.52,131.47,19.3154521]
[1744899443340,26.61394569,131.51,131.47,19.3154521]
[1744899443536,19.3154521,131.5,131.45,19.3154521]
[1744899443739,45.92939779,131.51,131.47,19.3154521]
[1744899444239,45.92939779,131.51,131.46,19.3154521]
[1744899445025,19.3154521,131.5,131.45,19.3154521]
[1744899445334,45.92939779,131.51,131.46,19.3154521]
[1744899445533,19.3154521,131.5,131.45,19.3154521]
[1744899446546,19.3154521,131.48,131.44,16.58]
[1744899446849,7.60629801,131.47,131.44,16.58]
[1744899447227,26.62204304,131.47,131.44,35.8954521]
[1744899448126,26.62204304,131.47,131.44,16.58]
[1744899449046,7.60629801,131.47,131.45,19.3154521]
[1744899449233,7.60629801,131.47,131.46,19.3154521]
[1744899449757,7.60456273,131.5,131.46,19.3154521]
[1744899449965,7.60456273,131.5,131.47,19.3154521]
[1744899450125,26.61596957,131.5,131.44,16.58]
[1744899450325,26.61596957,131.5,131.46,19.3154521]
[1744899451232,26.61596957,131.5,131.44,16.58]
[1744899451532,26.61596957,131.5,131.46,19.3154521]
[1744899453343,45.93142167,131.5,131.45,19.3154521]
[1744899453650,26.61596957,131.5,131.46,19.3154521]
[1744899455130,38.32685894,131.5,131.46,19.3154521]
[1744899455458,19.01140684,131.5,131.46,19.3154521]
[1744899455652,26.91943658,131.51,131.44,16.58]
[1744899455653,7.60398448,131.51,131.47,19.3154521]
[1744899455831,26.91943658,131.51,131.46,19.3154521]
[1744899457151,26.61394569,131.51,131.47,19.3154521]
[1744899458438,45.92939779,131.51,131.46,19.3154521]
[1744899458847,19.3154521,131.5,131.44,35.8954521]
[1744899459246,7.60514107,131.49,131.45,19.3154521]
[1744899460060,7.60514107,131.49,131.46,19.3154521]
[1744899460553,7.60514107,131.49,131.47,19.3154521]
[1744899461061,7.60514107,131.49,131.45,19.3154521]
[1744899461245,7.60514107,131.49,131.46,19.3154521]
[1744899461447,7.60514107,131.49,131.47,19.3154521]
[1744899462251,26.61799375,131.49,131.45,19.3154521]
[1744899462658,45.93344585,131.49,131.44,35.8954521]
[1744899464035,26.61799375,131.49,131.45,19.3154521]
[1744899464236,26.61799375,131.49,131.46,19.3154521]
[1744899464729,26.61799375,131.49,131.48,19.3154521]
[1744899464730,7.60514107,131.49,131.48,19.3154521]
[1744899464944,7.60514107,131.49,131.47,19.3154521]
[1744899465558,26.6143517,131.51,131.48,19.3154521]
[1744899466052,26.6143517,131.51,131.45,26.28432314]
[1744899466353,7.60398448,131.51,131.49,19.3154521]
[1744899467058,7.60398448,131.51,131.46,20.9375521]
[1744899467257,7.60398448,131.51,131.49,19.3154521]
[1744899467449,7.60398448,131.51,131.5,19.3154521]
[1744899467633,19.00744914,131.53,131.5,19.3154521]
[1744899467839,7.60225026,131.54,131.51,19.3154521]
[1744899469068,45.92332802,131.54,131.49,19.3154521]
[1744899469262,19.3154521,131.53,131.46,1.6221]
[1744899469463,19.3154521,131.52,131.47,19.3154521]
[1744899469842,19.3154521,131.53,131.48,19.3154521]
[1744899471358,45.92737423,131.52,131.47,19.3154521]
[1744899471867,26.61192213,131.52,131.48,19.3154521]
[1744899472165,7.60340632,131.52,131.49,19.3154521]
[1744899473369,7.60282825,131.53,131.49,19.3154521]
[1744899473669,7.60282825,131.53,131.46,27.20638507]
[1744899473670,26.60989888,131.53,131.5,19.3154521]
[1744899474479,7.60282825,131.53,131.51,19.3154521]
[1744899474972,7.60282825,131.53,131.48,0.28432314]
[1744899475179,7.60282825,131.53,131.5,19.3154521]
[1744899475467,7.60225026,131.54,131.5,19.3154521]
[1744899475856,26.60787592,131.54,131.48,0.28432314]
[1744899476057,45.92332802,131.54,131.49,19.3154521]
[1744899476571,19.3154521,131.53,131.48,19.3154521]
[1744899476750,45.92332802,131.54,131.49,19.3154521]
[1744899478366,19.3154521,131.53,131.48,19.3154521]
[1744899479568,26.61192213,131.52,131.48,19.3154521]
[1744899479871,19.3154521,131.51,131.46,19.3154521]
[1744899481162,1.5341,131.51,131.46,19.3154521]
[1744899481359,1.5341,131.51,131.47,19.3154521]
[1744899481555,45.93142167,131.5,131.45,19.3154521]
[1744899481757,19.3154521,131.49,131.44,35.8954521]
[1744899481957,19.3154521,131.48,131.44,16.58]
[1744899482159,19.3154521,131.49,131.44,35.8954521]
[1744899482365,45.93142167,131.5,131.45,19.3154521]
[1744899482857,44.93142167,131.5,131.45,19.3154521]
[1744899483173,44.93142167,131.5,131.44,35.8954521]
[1744899483174,19.3154521,131.49,131.44,35.8954521]
[1744899483468,45.93952025,131.46,131.42,19.31545211]
[1744899483683,45.93952025,131.46,131.42,1e-08]
[1744899483852,19.3154521,131.43,131.42,1e-08]
[1744899484354,19.3154521,131.44,131.42,1e-08]
[1744899485673,7.60861294,131.43,131.42,1e-08]
[1744899487662,26.92348618,131.44,131.42,1e-08]
[1744899487857,37.96510096,131.43,131.42,1e-08]
[1744899488058,44.07770096,131.43,131.42,1e-08]
[1744899488651,44.07770096,131.43,131.4,1e-08]
[1744899488652,37.96510096,131.41,131.4,1e-08]
[1744899489573,37.96510096,131.41,131.38,0.03]
[1744899489574,26.26057815,131.39,131.38,1e-08]
[1744899489773,45.57603025,131.39,131.38,1e-08]
[1744899490152,18.64964886,131.38,131.36,1e-08]
[1744899490351,18.64964886,131.36,131.34,1e-08]
[1744899490557,18.64964886,131.34,131.29,0.2]
[1744899490859,18.64964886,131.32,131.29,0.2]
[1744899491451,16.58,131.33,131.29,19.5154521]
[1744899491655,7.61498629,131.32,131.29,19.5154521]
[1744899491856,7.61498629,131.32,131.3,19.3154521]
[1744899492167,7.61498629,131.32,131.29,19.5154521]
[1744899492369,7.61498629,131.32,131.3,19.3154521]
[1744899492570,7.61498629,131.32,131.29,19.5154521]
[1744899492753,7.61436089,131.34,131.31,19.3154521]
[1744899492958,7.61436089,131.34,131.29,0.2]
[1744899493172,7.61436089,131.34,131.31,19.3154521]
[1744899493366,7.61436089,131.34,131.29,0.2]
[1744899493681,7.61436089,131.34,131.32,19.3154521]
[1744899493876,7.61436089,131.34,131.29,0.48432314]
[1744899494375,7.61436089,131.34,131.31,19.3154521]
[1744899494575,7.61436089,131.34,131.29,0.2]
[1744899495363,7.61436089,131.34,131.31,19.3154521]
[1744899495563,18.64964886,131.34,131.3,19.3154521]
[1744899495788,18.64964886,131.34,131.29,0.2]
[1744899495971,37.96510096,131.34,131.29,19.5154521]
[1744899496173,37.96510096,131.34,131.29,0.2]
[1744899496465,37.96510096,131.32,131.29,0.2]
[1744899496880,18.64964886,131.3,131.29,0.2]
[1744899497261,82.8,131.31,131.29,0.2]
[1744899497782,7.61614623,131.3,131.29,0.2]
[1744899498173,26.26579509,131.3,131.29,0.2]
[1744899498682,128.38124719,131.3,131.29,0.2]
[1744899500185,45.58124719,131.3,131.28,0.03]
[1744899500373,37.96510096,131.29,131.23,0.03]
[1744899500684,37.96510096,131.26,131.23,0.03]
[1744899501973,18.64964886,131.24,131.23,0.03]
[1744899502169,26.93508026,131.24,131.23,0.03]
[1744899502370,18.64964886,131.23,131.21,3.19925755]
[1744899502576,19.3154521,131.22,131.18,2.6477289]
[1744899502771,18.64964886,131.2,131.18,2.6477289]
[1744899503384,18.64964886,131.19,131.18,2.6477289]
[1744899503986,37.96510096,131.21,131.18,2.6477289]
[1744899504190,18.64964886,131.19,131.18,2.6477289]
[1744899504383,26.27218106,131.19,131.18,2.6477289]
[1744899505176,7.6225322,131.19,131.18,2.6477289]
[1744899507071,18.64964886,131.22,131.18,33.87514859]
[1744899507277,18.64964886,131.22,131.19,31.22741969]
[1744899507501,18.64964886,131.22,131.18,33.87514859]
[1744899507792,57.89815046,131.23,131.18,2.6477289]
[1744899508097,18.64964886,131.22,131.18,33.87514859]
[1744899508394,7.62137032,131.21,131.18,33.87514859]
[1744899508694,7.62137032,131.21,131.18,2.6477289]
[1744899508993,49.87706855,131.19,131.18,2.6477289]
[1744899509876,18.64964886,131.19,131.18,2.6477289]
[1744899510379,26.27218106,131.19,131.18,2.6477289]
[1744899510592,7.6225322,131.19,131.18,33.87514859]
[1744899510810,25.63173146,131.24,131.18,33.87514859]
[1744899510980,18.64964886,131.22,131.19,31.22741969]
[1744899511186,18.64964886,131.22,131.18,2.6477289]
[1744899511385,49.87706855,131.22,131.18,2.6477289]
[1744899511993,18.64964886,131.22,131.18,33.87514859]
[1744899512573,7.62137032,131.21,131.18,33.87514859]
[1744899512886,18.64964886,131.2,131.18,2.6477289]
[1744899513677,49.87706855,131.2,131.18,2.6477289]
[1744899514085,31.22741969,131.19,131.18,2.6477289]
[1744899514389,49.87706855,131.19,131.18,2.6477289]
[1744899514791,57.49960075,131.19,131.18,2.6477289]
[1744899515017,18.64964886,131.18,131.15,10.0]
[1744899515297,49.87706855,131.18,131.15,10.0]
[1744899515608,26.67886271,131.19,131.16,31.22741969]
[1744899515840,7.6225322,131.19,131.18,31.22741969]
[1744899516177,7.6225322,131.19,131.15,10.0]
[1744899516785,7.62195121,131.2,131.15,10.0]
[1744899516983,7.62195121,131.2,131.17,31.22741969]
[1744899517180,101.44964886,131.19,131.15,10.0]
[1744899517400,25.30004886,131.17,131.12,0.080581]
[1744899517900,6.6504,131.17,131.12,0.080581]
[1744899518074,18.64964886,131.16,131.12,31.30800069]
[1744899518279,26.67682925,131.2,131.14,31.22741969]
[1744899518482,18.64964886,131.19,131.12,0.080581]
[1744899518713,7.62311327,131.18,131.16,31.22741969]
[1744899519177,7.62311327,131.18,131.12,0.36490414]
[1744899519690,7.62311327,131.18,131.16,31.22741969]
[1744899519888,7.62195121,131.2,131.12,7.99125636]
[1744899520092,7.62195121,131.2,131.17,31.22741969]
[1744899520599,7.62153116,131.21,131.19,31.22741969]
[1744899520905,7.62020879,131.23,131.2,31.22741969]
[1744899521098,7.62020879,131.23,131.18,31.22741969]
[1744899521297,7.62020879,131.23,131.21,31.22741969]
[1744899521499,7.62020879,131.23,131.18,31.22741969]
[1744899521693,7.62020879,131.23,131.21,31.22741969]
[1744899522005,7.62020879,131.23,131.22,31.22741969]
[1744899522220,19.04587177,131.27,131.22,31.22741969]
[1744899522411,20.67228817,131.3,131.26,31.22741969]
[1744899522614,7.61672633,131.29,131.27,31.22741969]
[1744899522804,19.04118817,131.3,131.27,31.22741969]
[1744899523304,19.04118817,131.3,131.22,0.28432314]
[1744899523500,19.04118817,131.3,131.26,31.22741969]
[1744899523697,50.26860786,131.3,131.21,0.28432314]
[1744899523900,18.64964886,131.29,131.21,0.28432314]
[1744899524101,49.87706855,131.27,131.22,31.22741969]
[1744899524822,26.66463507,131.26,131.2,26.6312]
[1744899525116,26.66463507,131.26,131.22,31.22741969]
[1744899525813,26.66463507,131.26,131.23,31.22741969]
[1744899526328,7.61846716,131.26,131.24,31.22741969]
[1744899526513,7.61846716,131.26,131.25,31.22741969]
[1744899527218,37.69285671,131.29,131.21,0.28432314]
[1744899527219,45.31022168,131.28,131.21,0.28432314]
[1744899527526,45.31022168,131.28,131.24,31.22741969]
[1744899528310,26.66057282,131.28,131.24,31.22741969]
[1744899528527,26.66057282,131.28,131.25,31.22741969]
[1744899529226,26.66057282,131.28,131.24,31.22741969]
[1744899529737,26.66057282,131.28,131.25,31.22741969]
[1744899529929,26.66057282,131.28,131.26,31.22741969]
[1744899530117,7.61730652,131.28,131.27,31.22741969]
[1744899531324,7.61730652,131.28,131.24,0.28432314]
[1744899531516,26.65677026,131.3,131.27,31.22741969]
[1744899532112,26.65677026,131.3,131.24,0.28432314]
[1744899532305,7.61614623,131.3,131.29,31.22741969]
[1744899533232,7.61614623,131.3,131.26,19.98]
[1744899533433,26.71560599,131.32,131.29,31.22741969]
[1744899534318,26.71560599,131.32,131.26,19.98]
[1744899534706,26.71560599,131.32,131.29,31.22741969]
[1744899535329,26.71560599,131.32,131.26,19.98]
[1744899535330,57.94302568,131.32,131.26,19.98]
[1744899535530,140.74302568,131.32,131.28,31.22741969]
[1744899536029,109.51560599,131.32,131.26,19.98]
[1744899536332,31.22741969,131.27,131.22,51.20741969]
[1744899536635,31.22741969,131.25,131.18,19.98]
[1744899536936,114.02741969,131.24,131.19,31.22741969]
[1744899537314,114.02741969,131.24,131.2,31.22741969]
[1744899537514,49.87706855,131.22,131.18,19.98]
[1744899537714,132.67706855,131.22,131.18,51.20741969]
[1744899537913,101.44964886,131.22,131.18,51.20741969]
[1744899539033,7.62137032,131.21,131.19,31.22741969]
[1744899539239,82.8,131.22,131.2,31.22741969]
[1744899539434,82.8,131.22,131.21,31.22741969]
[1744899539625,7.62054247,131.23,131.21,31.22741969]
[1744899539940,7.62054247,131.23,131.18,59.11483786]
[1744899539941,7.61904761,131.25,131.22,31.22741969]
[1744899540238,7.61788679,131.27,131.24,31.22741969]
[1744899540438,7.61672633,131.29,131.26,31.22741969]
[1744899540619,7.61672633,131.29,131.28,31.22741969]
[1744899540814,7.61672633,131.29,131.23,19.98]
[1744899540815,7.61672633,131.29,131.27,31.22741969]
[1744899541015,26.65658774,131.3,131.27,31.22741969]
[1744899541620,7.61614623,131.3,131.27,31.22741969]
[1744899541833,7.61614623,131.3,131.23,19.98]
[1744899541834,7.61614623,131.3,131.28,31.22741969]
[1744899542218,7.61577704,131.31,131.29,31.22741969]
[1744899543148,7.67798629,131.32,131.3,31.22741969]
[1744899543451,7.67798629,131.32,131.29,31.22741969]
[1744899544121,7.67798629,131.32,131.3,31.22741969]
[1744899544835,7.67798629,131.32,131.26,7.90268864]
[1744899544836,7.67798629,131.32,131.31,31.22741969]
[1744899545225,0.063,131.32,131.29,31.22741969]
[1744899545425,31.29041969,131.32,131.27,31.22741969]